Cogmind - Beta 12 @@@ ROGUE MODE // 2023.05.30 @ 18:32:59 Player: Mr Goldstein Result: Self-destructed Performance ------------- Evolutions (3) 1500 Regions Visited (5) 1000 Robots Destroyed (20) 100 Value Destroyed (619) 619 Prototype IDs (0) 0 Alien Tech Used (0) 0 Bonus (857) 857 TOTAL SCORE: 4076 Bonus ------- Pacifist 834 High Alert Combat Kills 23 Cogmind --------- Core Integrity 319/700 Matter 264/300 Energy 95/100 System Corruption 0% Temperature Cool (0) Movement Core (50) Location -7/Factory Parts ------- > --- POWER (1) -------- (None) > --- PROPULSION (5) --- (None) > --- UTILITY (5) ------ Improved Targeting Computer Launcher Guidance Computer Core Analyzer > --- WEAPON (2) ------- (None) > --- INVENTORY (5) ---- Xenon Bombardment Thruster Small Storage Unit Advanced Weight Redist. System Core Analyzer Rocket Launcher Peak State ------------ > --- POWER ------------ (None) > --- PROPULSION ------- (None) > --- UTILITY ---------- Improved Targeting Computer Launcher Guidance Computer Core Analyzer System Shield > --- WEAPON ----------- Rocket Launcher > --- INVENTORY -------- Xenon Bombardment Thruster Small Storage Unit Advanced Weight Redist. System Core Analyzer [Rating: 16] Favorites ----------- Power None Propulsion None Utility Launcher Guidance Computer Processor Launcher Guidance Computer Hackware System Shield Weapon Rocket Launcher Launcher Rocket Launcher Build | -11 -10 -9 -9 -8 -7 ------- Run | Jun Mat Mat Min Mat Fac Slots Evolved 6 | . . 2 . 2 2 Power . | . . . . . . Propulsion 3 | . . 1 . 1 1 Utility 3 | . . 1 . 1 1 Weapon . | . . . . . . Parts Attached 11 | . . 2 . . 9 Power . | . . . . . . Engine . | . . . . . . Core . | . . . . . . Reactor . | . . . . . . Propulsion . | . . . . . . Treads . | . . . . . . Leg . | . . . . . . Wheel . | . . . . . . Hover . | . . . . . . Flight . | . . . . . . Utility 5 | . . 1 . . 4 Device . | . . . . . . Storage . | . . . . . . Processor 4 | . . 1 . . 3 Hackware 1 | . . . . . 1 Protection . | . . . . . . Artifact . | . . . . . . Weapon 6 | . . 1 . . 5 Energy Gun . | . . . . . . Energy Cannon . | . . . . . . Ballistic Gun . | . . . . . . Ballistic Cannon . | . . . . . . Launcher 6 | . . 1 . . 5 Special Weapon . | . . . . . . Impact Weapon . | . . . . . . Slashing Weapon . | . . . . . . Piercing Weapon . | . . . . . . Special Melee Weapon . | . . . . . . Unidentified Prototypes . | . . . . . . Parts Lost 3 | . . . . 1 2 Power . | . . . . . . Propulsion . | . . . . . . Utility 2 | . . . . 1 1 Weapon 1 | . . . . . 1 Highest Loss Streak 1 | . . . . 1 1 To Critical Strikes . | . . . . . . Average Slot Usage (%) 13 | . . 9 11 6 17 Processor 11 | . . 9 11 6 14 Hackware 1 | . . . . . 3 Naked Turns 172 | . 36 17 . 27 92 Heaviest Build 3 | . . 3 . . . Greatest Support 3 | 3 3 3 3 3 3 Greatest Overweight (x) . | . . . . . . Average Overweight (x) . | . . . . . . Largest Inventory Capacity 5 | 5 5 5 5 5 5 Average Capacity 5 | 5 5 5 5 5 5 Most Carried 5 | 1 2 2 2 2 5 Average Carried 2 | . 1 1 2 2 3 Final Capacity 5 | 5 5 5 5 5 5 Final Carried 5 | 1 2 1 2 2 5 Class Distribution -------------------- 100% | Mutant Dominant Class ---------------- Mutant | -10/Materials Mutant | -9/Materials Mutant | -9/Mines Mutant | -8/Materials Mutant | -7/Factory Resources | -11 -10 -9 -9 -8 -7 ----------- Run | Jun Mat Mat Min Mat Fac Matter Collected 429 | 197 . . 20 . 212 Remotely . | . . . . . . Salvage Created 581 | . . . . . 581 Parts 25 | . . . . . 25 Haulers Intercepted 1 | . . . . . 1 Recyclers Shooed 1 | . . . . . 1 Parts Field Recycled . | . . . . . . Retrieved Matter . | . . . . . . Parts Self-Destructed . | . . . . . . Prevented . | . . . . . . Kills | -11 -10 -9 -9 -8 -7 ------- Run | Jun Mat Mat Min Mat Fac Combat Hostiles Destroyed 13 | . . . . . 13 AOE 13 | . . . . . 13 Classes Destroyed 7 | . . . . . 7 Worker 3 | . . . . . 3 Builder 1 | . . . . . 1 Hauler 1 | . . . . . 1 Recycler 2 | . . . . . 2 Swarmer 2 | . . . . . 2 Grunt 10 | . . . . . 10 Duelist 1 | . . . . . 1 Best Kill Streak 12 | . . . . . 12 Combat Bots Only 10 | . . . . . 10 Max Kills in Single Turn 3 | . . . . . 3 Gunslinging . | . . . . . . Exploded 2 | . . . . . 2 Melee . | . . . . . . Uniques/NPCs Destroyed . | . . . . . . Combat | -11 -10 -9 -9 -8 -7 -------- Run | Jun Mat Mat Min Mat Fac Damage Taken 1197 | 2 88 135 . 465 507 Core 1040 | 2 88 124 . 445 381 Absorbed by Shields . | . . . . . . Core Remaining (%) 62 | 99 64 . 69 19 . Volleys Fired 17 | . . 1 . . 16 Largest 1 | . . 1 . . 1 Hottest 33 | . . 30 . . 33 Shots Fired 17 | . . 1 . . 16 Gun . | . . . . . . Cannon . | . . . . . . Launcher 17 | . . 1 . . 16 Special . | . . . . . . Kinetic . | . . . . . . Thermal . | . . . . . . Explosive 17 | . . 1 . . 16 Electromagnetic . | . . . . . . Robot Hit Streak 12 | . . . . . 12 Robot Miss Streak 1 | . . . . . 1 Penetration Max . | . . . . . . Secondary Targets . | . . . . . . Shots Hit Robots 12 | . . . . . 12 Core Hits 41 | . . . . 4 37 Critical Kills . | . . . . . . Critical Parts Destroyed . | . . . . . . Critical Strikes . | . . . . . . Melee Attacks . | . . . . . . Impact . | . . . . . . Slashing . | . . . . . . Piercing . | . . . . . . Sneak Attacks . | . . . . . . Combat Hostiles . | . . . . . . Follow-up Attacks . | . . . . . . Damage Inflicted 1704 | 5 . . 1 61 1637 Guns . | . . . . . . Cannons . | . . . . . . Explosions 1633 | . . . . . 1633 Melee . | . . . . . . Ramming 71 | 5 . . 1 61 4 Kinetic . | . . . . . . Thermal . | . . . . . . Explosive 1633 | . . . . . 1633 Electromagnetic . | . . . . . . Impact . | . . . . . . Slashing . | . . . . . . Piercing . | . . . . . . Highest Corruption 6 | . . . . 6 . Average Corruption 4 | . . . . 4 . Corruption Purged . | . . . . . . Corruption Blocked . | . . . . . . Overload Shots . | . . . . . . Overflow Damage 63 | . . . . . 63 Projectiles . | . . . . . . Explosions 63 | . . . . . 63 Melee . | . . . . . . Knockbacks . | . . . . . . Impact . | . . . . . . Kinetic . | . . . . . . Secondary . | . . . . . . Self-Inflicted Damage 31 | 2 . . . 27 2 Shots . | . . . . . . Rammed 23 | 1 . . 1 20 1 Targets Rammed 23 | 1 . . 1 20 1 Kicked . | . . . . . . Crushed . | . . . . . . Highest Temperature 7 | . . . . 5 7 Average Temperature 6 | . . . . 5 7 Received Heat Transfer 495 | . 12 78 . 171 234 Siege Activations . | . . . . . . Robots Corrupted . | . . . . . . Combat Hostiles . | . . . . . . Parts Fried . | . . . . . . Impact Corruptions . | . . . . . . Robots Melted . | . . . . . . Combat Hostiles . | . . . . . . Parts Melted . | . . . . . . Heat Transferred . | . . . . . . Parts Sabotaged . | . . . . . . Parts Stolen . | . . . . . . Parts Stripped . | . . . . . . Power Chain Reactions . | . . . . . . Missiles Intercepted . | . . . . . . Alert | -11 -10 -9 -9 -8 -7 ------- Run | Jun Mat Mat Min Mat Fac Peak Influence 560 | . 30 87 33 12 560 Initial 33 | . . 12 33 12 . Average 93 | . 22 38 33 8 144 Maximum Alert Level 2 | . . . . . 2 Low Security (%) 84 | 100 100 100 100 100 73 Level 1 2 | . . . . . 3 Level 2 13 | . . . . . 22 Level 3 . | . . . . . . Level 4 . | . . . . . . Level 5 . | . . . . . . High Security . | . . . . . . Max Security . | . . . . . . Squads Dispatched 9 | . 1 . . 1 7 Investigation 3 | . 1 . . . 2 Extermination . | . . . . . . Reinforcement 6 | . . . . 1 5 Assault . | . . . . . . Garrison . | . . . . . . Intercept . | . . . . . . Searches Triggered . | . . . . . . Construction Impeded 1 | . . . . . 1 Haulers Reinforced 1 | . . . . . 1 Active Scanning Responses . | . . . . . . Cargo Convoy Interrupts . | . . . . . . Stealth | -11 -10 -9 -9 -8 -7 --------- Run | Jun Mat Mat Min Mat Fac Distress Signals 1 | . . . . 1 . Communications Jammed . | . . . . . . Distress Signals . | . . . . . . Times Spotted 52 | . 5 7 . 11 29 Peak Tracking Total 12 | . 5 4 . 11 12 Tactical Retreats 5 | . . . . . 5 Traps | -11 -10 -9 -9 -8 -7 ------- Run | Jun Mat Mat Min Mat Fac Traps Triggered . | . . . . . . Indirectly . | . . . . . . Trap Hack Attempts . | . . . . . . Triggered . | . . . . . . Disarmed . | . . . . . . Reprogrammed . | . . . . . . Reused . | . . . . . . Traps Extracted . | . . . . . . Installed . | . . . . . . Triggered . | . . . . . . Machines | -11 -10 -9 -9 -8 -7 ---------- Run | Jun Mat Mat Min Mat Fac Machines Disabled 2 | . . 1 . . 1 Max in Single Turn 1 | . . 1 . . 1 Machines Repaired . | . . . . . . Machines Sabotaged . | . . . . . . Overloaded Fab Kills . | . . . . . . Hacking | -11 -10 -9 -9 -8 -7 --------- Run | Jun Mat Mat Min Mat Fac Machines Accessed 6 | . 1 1 . 1 3 Terminals 4 | . . 1 . 1 2 Fabricators . | . . . . . . Repair Stations . | . . . . . . Recycling Units 1 | . 1 . . . . Scanalyzers . | . . . . . . Garrison Access 1 | . . . . . 1 Total Hacks 19 | . 1 2 . 4 12 Successful 2 | . 1 1 . . . Failed 17 | . . 1 . 4 12 Catastrophic 7 | . . 1 . 1 5 Database Lockouts . | . . . . . . Manual 18 | . 1 2 . 4 11 Terminals 14 | . . 2 . 4 8 Fabricators . | . . . . . . Repair Stations . | . . . . . . Recycling Units 1 | . 1 . . . . Scanalyzers . | . . . . . . Garrison Access 4 | . . . . . 4 Terminal Hacks 1 | . . 1 . . . Branch Access Points 1 | . . 1 . . . Fabricator Hacks . | . . . . . . Repair Station Hacks . | . . . . . . Recycling Unit Hacks . | . . . . . . Scanalyzer . | . . . . . . Garrison Access Hacks . | . . . . . . Unauthorized Hacks 1 | . 1 . . . . Terminals . | . . . . . . Fabricators . | . . . . . . Repair Stations . | . . . . . . Recycling Units 1 | . 1 . . . . Tunnel 1 | . 1 . . . . Scanalyzers . | . . . . . . Garrison Access . | . . . . . . Data Cores Recovered . | . . . . . . Used . | . . . . . . Hacking Detections 5 | . . 1 . 1 3 Full Trace Events 3 | . . 1 . . 2 Feedback Events . | . . . . . . Feedback Blocked . | . . . . . . Robot Schematics Acquired . | . . . . . . Robots Built . | . . . . . . Authchips . | . . . . . . Time . | . . . . . . Total Robot Build Rating . | . . . . . . Part Schematics Acquired . | . . . . . . Parts Built . | . . . . . . Authchips . | . . . . . . Time . | . . . . . . Total Part Build Rating . | . . . . . . Parts Repaired . | . . . . . . Time . | . . . . . . Parts Recycled . | . . . . . . Recycled Matter . | . . . . . . Retrieved Matter . | . . . . . . Retrieved Components . | . . . . . . Parts Scanalyzed . | . . . . . . Part Schematics Acquired . | . . . . . . Parts Damaged . | . . . . . . Bothacking | -11 -10 -9 -9 -8 -7 ------------ Run | Jun Mat Mat Min Mat Fac Used RIF Installer . | . . . . . . Robots Hacked . | . . . . . . Non-combat . | . . . . . . Combat . | . . . . . . Robot Hacks Applied . | . . . . . . Relay Couplers Released . | . . . . . . Fabnet Peak Effective % . | . . . . . . Robots Rewired . | . . . . . . Allies Hacked . | . . . . . . Hacks Repelled . | . . . . . . Allies | -11 -10 -9 -9 -8 -7 -------- Run | Jun Mat Mat Min Mat Fac Total Allies . | . . . . . . Largest Group . | . . . . . . Highest-Rated Group . | . . . . . . Highest-Rated Ally . | . . . . . . Total Orders . | . . . . . . Ally Attacks . | . . . . . . Total Damage . | . . . . . . Kills . | . . . . . . Allies Corrupted . | . . . . . . Allies Melted . | . . . . . . Intel | -11 -10 -9 -9 -8 -7 ------- Run | Jun Mat Mat Min Mat Fac Robot Analysis Total . | . . . . . . Derelict Logs Recovered 1 | . . . 1 . . Drone Launches . | . . . . . . Drone Recoveries . | . . . . . . Exploration | -11 -10 -9 -9 -8 -7 ------------- Run | Jun Mat Mat Min Mat Fac Turns Passed 519 | 13 36 69 29 71 301 Spaces Moved 873 | 21 70 128 55 101 498 Core 873 | 21 70 128 55 101 498 Treads . | . . . . . . Legs . | . . . . . . Wheels . | . . . . . . Hover . | . . . . . . Flight . | . . . . . . Fastest Speed 50 | 50 50 50 50 50 50 Average Speed 50 | 50 50 50 50 50 50 Slowest Speed 50 | 50 50 50 50 50 50 Overloaded Moves . | . . . . . . Propulsion Burnouts . | . . . . . . Robots Hopped . | . . . . . . Cave-ins Triggered . | . . . . . . Exploration Rate (%) 15 | 4 18 16 17 18 20 Regions Visited 5 Branch Regions 1 Pre-discovered Areas 1 | . 1 . . . . Known Exits Taken 2 | . . 1 1 . . Unknown Exits Taken 3 | 1 1 . . 1 . Scrap Searched 1 | . . . 1 . . Spaces Dug 10 | . . 7 . . 3 Terrain Destroyed 70 | . . 7 . . 63 Melee . | . . . . . . Projectile . | . . . . . . AOE 70 | . . 7 . . 63 Terrain Rammed . | . . . . . . Walls Destroyed . | . . . . . . Machines Disabled . | . . . . . . Actions | -11 -10 -9 -9 -8 -7 --------- Run | Jun Mat Mat Min Mat Fac Total 931 | 22 70 130 56 120 533 Wait 1 | . . . . . 1 Move 868 | 20 69 127 54 100 498 Hop . | . . . . . . Pick Up 6 | 1 1 . . . 4 Fast Attach 5 | . . 1 . . 4 Attach 6 | . . 1 . . 5 Detach 5 | . . . 1 . 4 Swap . | . . . . . . Drop . | . . . . . . Fire 17 | . . 1 . . 16 Melee . | . . . . . . Ram 23 | 1 . . 1 20 1 Kick . | . . . . . . Crush . | . . . . . . Escape Stasis . | . . . . . . Rewire . | . . . . . . Trap . | . . . . . . Miscellaneous . | . . . . . . Route ------- -11/Junkyard -10/Materials -9/Materials (discovered 2 exits: *Min x2) -9/Mines -8/Materials -7/Factory History --------- Turn | Location | Event 4 | -11/Junkyard | Discovered new exit (range 15) 14 | -11/Junkyard | Entered Materials 41 | -10/Materials | Discovered new exit (range 16) 50 | -10/Materials | Entered another Materials area 50 | -9/Materials | Evolved 2 slots: Propulsion x1, Utility x1 94 | -9/Materials | Identified exit to Mines 119 | -9/Materials | Entered Mines 125 | -9/Mines | Met a Derelict bent on vengeance 139 | -9/Mines | Discovered new exit (range 13) 142 | -9/Mines | Learned Materials stockpile data 148 | -9/Mines | Identified exit to Materials 148 | -9/Mines | Entered Materials 148 | -8/Materials | Evolved 2 slots: Propulsion x1, Utility x1 210 | -8/Materials | Discovered new exit (range 15) 217 | -8/Materials | Core integrity fell below 50% 219 | -8/Materials | Core integrity fell below 20% 219 | -8/Materials | Entered Factory 219 | -7/Factory | Evolved 2 slots: Propulsion x1, Utility x1 311 | -7/Factory | Build established: Mutant 473 | -7/Factory | Destroyed 10 combat bots 520 | -7/Factory | Core integrity fell below 50% 520 | -7/Factory | Self-destructed Last Messages --------------- 00482_ K-01 Serf collects debris. 00483_ U-05 Engineer lays Concrete. 00483_ Acquired 56 matter. 00483_ K-01 Serf collects debris. 00484_ U-05 Engineer lays Concrete. 00484_ O-24 Administrator: "IFF HANDSHAKE FAILED. SECURING TERMINAL." 00484_ O-24 Administrator uses terminal to summon reinforcements. 00484_ ALERT: Hostiles spotted, dispatching reinforcements to Terminal F001. 00484_ O-24 Administrator locks terminal. 00484_ K-01 Serf collects debris. 00485_ U-05 Engineer lays Concrete. 00488_ K-01 Serf cleans the Neutrino Reactor. 00488_ O-24 Administrator: "IFF HANDSHAKE FAILED. SECURING TERMINAL." 00491_ Slammed into O-24 Administrator. 00492_ ALERT: Hostiles spotted, dispatching reinforcements to Terminal F005. 00496_ Connecting with Terminal... 00508_ K-01 Serf cleans the Neutrino Reactor. 00515_ S-27 Virus destroyed. Map ----- +----------------------------------------------------+ | ?????????????????????????????????????????????????? | | ?????????????????????????????????????????????????? | | ?????????????????????????????????????????????????? | | ?????????????????????????????????????????????????? | | ?????????????????????????????????????????????????? | | ?????????????????????????????????????????????????? | | ?????????????????????????????????????????????????? | | ?????????????????????????????????????????????????? | | ?????????????????????????????????????????????????? | | ?????????????????????????????????????????????????? | | ????????????????????????? ?????????????????????? | | ????????????????????????? ???????????????????? | | ????????????????????????? k "?????????????????? | | ?????????????????????????a ??????????????????? | | ???????????????????????? ??????????????????? | | ????????????????????????# s#????#?????????????? | | ????????????????##??????# #??? ????????????? | | ?????????????#### ####### #?? ???????????? | | ?????????????? +? = ??????????? | | ??????????????"" #? [!???????????? | | ?????????????""" Y [ # ?????????????? | | ?????????????""" %% # ???????????????? | | ????????????? !! = ?????????????????? | | ???????????? """ !! #??????????????????? | | ???????????# """ ! #??????????????????? | | ???????????# """ #@ #??????????????????? | | ????????????? ! # #??????????????????? | | ??????????????? !# #??????????????????? | | ????????????????? # #??????????????????? | | ??????????????????? # #??????????????????? | | #####################+### #??????????????????? | | #??????????????????? | | +??????????????????? | | #??????????????????? | | " """ """ """ """ """ #??????????????????? | | " """ """ """ """ """ k #??????????????????? | | " """ """ """ """ """ #### ###??????????????????? | | #??? #????????????????????? | | " """ """ """ #???+#????????????????????? | | " """ """ """ ""T"" #?????????????????????????? | | " """ """ """ """"" +?????????????????????????? | | #?????????????????????????? | | #?????????????????????????? | | "######+########## #?""""????????????????????? | | "#??? ???????# #?"""" ???????????????????? | | ##?" ???### # ????????????????????? | | ?#"" ## # """"????????????????????? | | ?#"T + * % + """"????????????????????? | | ?#"" """" ### =*]* # """" ???????????????????? | | ?#"" """" # * * # """" """" ??????????????? | +----------------------------------------------------+ Best States ------------- Heat Dissipation 34 Energy Generation 5 Energy Capacity 100 Matter Stores 300 Matter Capacity 300 Sight Range 16 Terrain Scan Density 10 Evasion (%) 50 Targeting Accuracy 6 Launcher Accuracy 20 Core Analysis 6 Defensive Hacking 10 Item Schematics ----------------- None Robot Schematics ------------------ None Fabricated ------------ Nothing Alien Tech Used ----------------- None Achievements -------------- None Challenges ------------ None Game ------ Seed ProtonGlidesysWarhead Manual? 0 Play Time 00:10:08 Cumulative 254.2 hours Start 2023.05.30 @ 18:26:32 End 2023.05.30 @ 18:32:59 Sessions 1 Manual Loads 0 Difficulty Rogue Special Mode None Game No. 760 Rogue 760 Adventurer 0 Explorer 0 Win Type - Total 13 Types 8/0/3/2/0/0/0/0/0 Lore% 87 Gallery% 84 Achievement% 75 Wizard Run 0 Options --------- ASCII 0 Keyboard 0 Movement Numpad Keybinds 0 Fullscreen 1 Font 16/SmallcapsGlow Map View 75x55 Tactical HUD 1 Map Filters NONE Filters NONE Steam 1 RUN: 4eb7847c-90bd-40b6-a307-b70fae0ba6fb